[Event "TePe Sigeman Co 2024"]
[Site "Malmo"]
[Date "2024.05.01"]
[Round "5.1"]
[White "Erigaisi Arjun"]
[Black "Keymer, Vincent"]
[Result "1/2-1/2"]
[ECO "C88"]
[WhiteElo "2756"]
[BlackElo "2726"]
[Annotator "TA"]
[PlyCount "78"]
[EventDate "2024.04.27"]
[EventType "tourn"]
[EventCountry "SWE"]
[SourceTitle "playchess.com"]
[Source "ChessBase"]
[SourceQuality "1"]
[TimeControl "40/5400+30:1800+30"]

{[%evp 16,78,27,24,30,25,38,15,31,0,0,0,3,0,0,0,0,0,0,-16,-6,-3,-4,0,4,-18,-15,-6,-1,-8,0,0,0,0,0,0,0,0,0,0,0,0,0,0,0,0,0,0,0,0,0,0,0,0,0,0,0,0,0,0,0,0,0,0,0]} 1. e4 {[%emt 0:00:07]} e5 {[%emt 0:00:03]} 2. Nf3 {[%emt 0:00:05]} Nc6 {[%emt 0:00:02]} 3. Bb5 {[%emt 0:00:07]} a6 {[%emt 0:00:04]} 4. Ba4 {[%emt 0:00:04]} Nf6 {[%emt 0:00:03]} 5. O-O {[%emt 0:00:07]} Be7 {[%emt 0:00:03]} 6. Re1 {[%emt 0:00:06]} b5 {[%emt 0:00:03]} 7. Bb3 {[%emt 0:00:05]} O-O {[%emt 0:00:04]} 8. h3 {[%emt 0:00:05]} Bb7 {[%emt 0:00:04]} 9. d3 {[%emt 0:00:06]} d5 {[%emt 0:00:13]} 10. exd5 {[%emt 0:00:07]} Nxd5 {[%emt 0:00:04]} 11. Nbd2 {[%emt 0:00:06][%cal Od2e4]} Nd4 {[%emt 0:01:02]} 12. Nxd4 {[%emt 0:00:22]} exd4 {[%emt 0:00:02] The position is equal.} 13. Qf3 {[%emt 0:00:07][%cal Oe1e7]} Ra7 {[%emt 0:00:07]} 14. Qf5 {[%emt 0:02:27] [#] Threatens to win with Bxd5.} g6 {[%emt 0:00:05]} 15. Qe5 {[%emt 0:03:29]} Bf6 $1 {[%emt 0:00:05] Prevents Ne4} 16. Qg3 {[%emt 0:00:06]} Ne3 {[%emt 0:00:50]} 17. Ne4 {[%emt 0:00:47]} Bxe4 {[%emt 0:00:17]} 18. dxe4 {[%emt 0:03:35][%cal Oe4e5] [#]} (18. fxe3 $2 Bh4 19. Qf4 Bxg2 $17 (19... Bxe1 $2 20. Qxe4 c5 21. Qf4 $19)) 18... c5 $1 {[%emt 0:00:14][%cal Oc5c4] ...c4! would now be deadly.} 19. c3 {[%emt 0:03:34]} ({Much weaker is} 19. fxe3 Bh4 20. Qf3 Bxe1 $17) 19... Nc4 {[%emt 0:00:16]} 20. a4 {[%emt 0:25:21] aiming for axb5.} Rd7 {[%emt 0:26:22] ...Be5 is the strong threat.} 21. axb5 {[%emt 0:00:46]} axb5 {[%emt 0:00:09]} 22. cxd4 {[%emt 0:01:21]} Rxd4 {[%emt 0:09:52]} 23. Bxc4 {[%emt 0:01:30]} Rxc4 {[%emt 0:03:53]} 24. e5 {[%emt 0:05:34]} Re8 {[%emt 0:04:43]} 25. Bh6 {[%emt 0:03:40]} Bg7 {[%emt 0:16:03]} 26. Bxg7 {[%emt 0:00:58]} Kxg7 {[%emt 0:01:18]} 27. b3 {[%emt 0:20:24]} Rd4 {[%emt 0:05:12]} 28. e6 {[%emt 0:03:03]} Qd6 {[%emt 0:03:31]} ({Reject} 28... fxe6 $6 29. Qe5+ Kg8 30. Qxc5 $16) 29. Qxd6 {[%emt 0:00:47]} Rxd6 $11 {[%emt 0:00:05][%mdl 4096] Endgame. KRR-KRR} 30. Re5 {[%emt 0:00:24]} Rdxe6 {[%emt 0:01:15]} (30... fxe6 31. Rxc5 Rb8 32. Ra7+ Kf6 33. Rxh7 $16) 31. Rxc5 {[%emt 0:00:07]} Re5 {[%emt 0:00:02]} 32. Rac1 {[%emt 0:01:04]} Kf6 {[%emt 0:00:44]} 33. Kf1 {[%emt 0:00:06]} h5 {[%emt 0:00:32]} 34. Rxe5 {[%emt 0:00:12]} Rxe5 {[%emt 0:00:04] KR-KR} 35. Rc6+ {[%emt 0:00:05]} Re6 {[%emt 0:00:14]} 36. Rc5 {[%emt 0:00:06]} Re5 {[%emt 0:00:04]} 37. Rc6+ {[%emt 0:00:04]} Re6 {[%emt 0:00:02]} 38. Rc5 {[%emt 0:00:06]} Re5 {[%emt 0:00:03]} 39. Rc6+ {[%emt 0:00:04]} Re6 {[%emt 0:00:04] Weighted Error Value: White=0.04 (flawless) /Black=0.01 (flawless) .  Inaccurate:     	White=1     	---        OK:         	White=20    	Black=11     Strong:       	---       	Black=1} 1/2-1/2

[Event "TePe Sigeman Co 2024"]
[Site "Malmo"]
[Date "2024.05.01"]
[Round "5.2"]
[White "Svidler, Peter"]
[Black "Korobov, Anton"]
[Result "1-0"]
[ECO "B53"]
[WhiteElo "2689"]
[BlackElo "2651"]
[Annotator "TA"]
[PlyCount "71"]
[EventDate "2024.04.27"]
[EventType "tourn"]
[EventCountry "SWE"]
[SourceTitle "playchess.com"]
[Source "ChessBase"]
[SourceQuality "1"]
[TimeControl "40/5400+30:1800+30"]

{[%evp 9,71,15,22,2,18,-11,-1,0,-6,0,0,0,-15,-18,11,27,33,24,33,-37,35,33,41,15,49,19,22,0,24,35,25,40,35,9,10,20,25,11,134,132,114,121,126,116,163,133,125,122,146,141,147,147,127,91,76,81,383,383,366,394,394,381,1057,968]} 1. e4 {[%emt 0:00:07]} c5 {[%emt 0:00:06]} 2. Nf3 {[%emt 0:00:05]} d6 {[%emt 0:00:06]} 3. Nc3 {[%emt 0:00:09]} Nf6 {[%emt 0:00:25]} 4. d4 {[%emt 0:00:07]} cxd4 {[%emt 0:00:10]} 5. Qxd4 {[%emt 0:00:04]} Nc6 {[%emt 0:01:34]} 6. Qe3 {[%emt 0:00:41]} e6 {[%emt 0:02:55]} 7. b3 {[%emt 0:00:43]} Be7 {[%emt 0:01:57]} 8. Bb2 {[%emt 0:00:44] The position is equal.} a6 {[%emt 0:03:38]} 9. O-O-O {[%emt 0:03:29]} Qc7 {[%emt 0:02:24]} 10. h3 {[%emt 0:13:24]} b5 {[%emt 0:02:52][%cal Bb7b5,Bb5b4][%mdl 32]} 11. g4 {[%emt 0:01:16][%cal Bg2g4,Bg4g5][%mdl 32]} Bb7 {[%emt 0:01:13]} 12. g5 {[%emt 0:06:07]} Nd7 {[%emt 0:02:28]} 13. Kb1 {[%emt 0:01:42]} Nc5 {[%emt 0:05:02]} 14. Rg1 {[%emt 0:09:49]} (14. a3 $14) 14... O-O-O {[%emt 0:08:31]} (14... O-O $15) 15. Nd4 {[%emt 0:05:36]} b4 {[%emt 0:13:01] [#] Strongly threatening ...Nxd4.} 16. Nce2 {[%emt 0:01:28]} Na7 {[%emt 0:08:27]} 17. Ng3 {[%emt 0:03:58]} Kb8 {[%emt 0:08:05]} 18. f4 {[%emt 0:03:39]} Rhe8 {[%emt 0:09:04]} 19. Rg2 $36 {[%emt 0:04:46][%mdl 2048] White is more active.} e5 {[%emt 0:02:47]} 20. Ndf5 {[%emt 0:11:54]} Bf8 {[%emt 0:01:16]} 21. fxe5 {[%emt 0:05:37]} dxe5 {[%emt 0:00:27]} 22. Rgd2 {[%emt 0:00:02]} Rxd2 {[%emt 0:01:08]} 23. Rxd2 {[%emt 0:00:11]} Nb5 {[%emt 0:07:06]} (23... g6 $11 {remains equal.} 24. Nh6 Bxh6) 24. Bxb5 $16 {[%emt 0:01:41]} axb5 {[%emt 0:00:02]} 25. Qe2 {[%emt 0:00:13]} f6 {[%emt 0:11:54]} 26. Ne3 {[%emt 0:05:45]} Rd8 {[%emt 0:02:03]} (26... Ka7 $16) 27. Nd5 {[%emt 0:07:51]} Qd7 {[%emt 0:00:56]} 28. Qf1 {[%emt 0:00:46]} Qe6 {[%emt 0:01:50]} 29. gxf6 {[%emt 0:01:18][%cal Od5f4] [#] Hoping for Nf4!} Nxe4 {[%emt 0:01:33]} 30. Nxe4 {[%emt 0:00:16][%cal Bg3e4,Be4g5,Bg5e6][%mdl 32]} Rxd5 {[%emt 0:00:02]} 31. Ng5 {[%emt 0:05:17] White has more active pieces.} Qxf6 {[%emt 0:00:03]} 32. Rf2 {[%emt 0:00:08]} Rd1+ $2 {[%emt 0:00:05][%mdl 8192] This costs Black the game.} 33. Qxd1 $18 {[%emt 0:00:04]} Qxf2 {[%emt 0:00:03]} 34. Qd8+ {[%emt 0:04:32]} ({Not} 34. Nxh7 Be7 $16) (34. Bxe5+ Kc8 35. Qg4+ (35. Nxh7 Bf3 $16) 35... Kd8 $18) 34... Ka7 {[%emt 0:00:12]} 35. Ne6 {[%emt 0:02:46] aiming for Qa5+.} (35. Bxe5 $2 {perishes.} Qe1+ 36. Kb2 Qxe5+ $19) ({Resist} 35. Qa5+ Ba6 $18) 35... Qg1+ $2 {[%emt 0:00:38]} (35... Qb6) 36. Bc1 {[%emt 0:00:04] Weighted Error Value: White=0.14 (very precise) /Black=0.31.  Loses game:     	---       	Black=1      Mistake:       	White=1     	Black=4      Inaccurate:     	White=4     	Black=2      OK:         	White=12    	Black=15     Best:        	White=3     	Black=1} 1-0

[Event "TePe Sigeman Co 2024"]
[Site "Malmo"]
[Date "2024.05.01"]
[Round "5.3"]
[White "Grandelius, Nils"]
[Black "Maurizzi, Marc`Andria"]
[Result "1/2-1/2"]
[ECO "C78"]
[WhiteElo "2664"]
[BlackElo "2605"]
[Annotator "TA"]
[PlyCount "78"]
[EventDate "2024.04.27"]
[EventType "tourn"]
[EventCountry "SWE"]
[SourceTitle "playchess.com"]
[Source "ChessBase"]
[SourceQuality "1"]
[TimeControl "40/5400+30:1800+30"]

{[%evp 16,78,15,17,14,0,0,0,38,11,28,22,39,21,16,0,-3,-4,-7,-7,0,0,0,0,0,0,0,0,0,-16,0,0,0,0,0,0,0,0,0,0,0,0,0,0,0,0,0,0,0,0,0,0,0,0,0,0,0,0,0,0,0,0,0,0,0]} 1. e4 {[%emt 0:00:21]} e5 {[%emt 0:00:18]} 2. Nf3 {[%emt 0:00:24]} Nc6 {[%emt 0:00:40]} 3. Bb5 {[%emt 0:00:28]} a6 {[%emt 0:00:37]} 4. Ba4 {[%emt 0:00:23]} Nf6 {[%emt 0:00:04]} 5. d3 {[%emt 0:00:16]} Bc5 {[%emt 0:02:07]} 6. O-O {[%emt 0:00:45]} d6 {[%emt 0:00:13]} 7. c3 {[%emt 0:01:36]} O-O {[%emt 0:00:48]} 8. h3 {[%emt 0:07:20] C78: Ruy Lopez: Archangelsk and Möller Defences.} Ba7 {[%emt 0:00:26]} 9. Re1 {[%emt 0:00:49]} Nh5 {[%emt 0:00:08]} 10. d4 {[%emt 0:12:00]} Qf6 {[%emt 0:00:37]} 11. Nbd2 {[%emt 0:20:47]} b5 {[%emt 0:00:28]} 12. Bc2 {[%emt 0:02:27]} Nf4 {[%emt 0:09:00]} 13. Nf1 {[%emt 0:01:38]} g5 {[%emt 0:00:22]} 14. Ne3 $146 {[%emt 0:06:55]} ({Predecessor:} 14. Be3 Kh8 15. N1h2 Rg8 16. Kh1 Bb6 17. a4 Rb8 18. Bb3 Na5 19. Ba2 Qg7 20. Ng4 {½-½ Salvador Marques,C (2447)-Rallabandi,P (2486) EU-chT12 sf2 email 2021}) 14... Kh8 {[%emt 0:00:35]} (14... exd4 {keeps more tension.} 15. Nd5 Qg7 16. Nxg5 f6) 15. Nf5 {[%emt 0:06:14]} Bxf5 $1 {[%emt 0:00:22]} 16. exf5 {[%emt 0:00:03]} exd4 {[%emt 0:01:07]} 17. h4 {[%emt 0:04:38]} d3 $1 {[%emt 0:00:17]} 18. Bxd3 {[%emt 0:01:41]} Nxd3 {[%emt 0:00:13]} 19. Qxd3 {[%emt 0:00:11]} g4 $1 {[%emt 0:00:26]} 20. Bg5 {[%emt 0:04:41]} Qg7 {[%emt 0:01:00]} 21. f6 {[%emt 0:11:44]} Qg6 {[%emt 0:12:05]} 22. Qd5 $1 {[%emt 0:00:10]} (22. Qxg6 fxg6 23. Nd2 g3 $17) 22... gxf3 {[%emt 0:18:36]} (22... h6 $5 23. Qxc6 hxg5 (23... gxf3 24. Qxf3 hxg5 25. hxg5 $15) 24. Nxg5 Qxf6 $11) 23. Qxc6 {[%emt 0:00:03]} h6 {[%emt 0:00:39]} 24. Qxf3 $1 {[%emt 0:00:17]} hxg5 {[%emt 0:01:13]} 25. hxg5 {[%emt 0:00:02]} Rae8 {[%emt 0:03:40]} (25... Qxg5 $2 26. Qh3+ Kg8 27. Re4 Qxf6 28. Rg4+ $18) 26. g3 {[%emt 0:10:58]} Kg8 {[%emt 0:12:35]} (26... Qxg5 $2 27. Kg2 Kh7 28. Rh1+ Kg6 29. Rh4 $18) 27. Kg2 $1 {[%emt 0:00:40]} Qc2 {[%emt 0:09:40]} (27... Qxg5 $2 28. Rh1 Re6 29. Rh4 Rxf6 (29... Qxf6 $2 30. Rg4+ $18) 30. Rg4 $18) 28. Re7 {[%emt 0:04:16]} Rxe7 {[%emt 0:13:22]} 29. fxe7 {[%emt 0:00:01]} Re8 {[%emt 0:00:04]} 30. Re1 $1 {[%emt 0:00:18]} Qd2 {[%emt 0:01:40]} (30... Qxb2 $2 {too greedy.} 31. Re2 $18) 31. Re2 {[%emt 0:03:17]} Qxg5 {[%emt 0:00:31]} 32. Qc6 {[%emt 0:00:26]} (32. Re4 $5 f5 $8 (32... Rxe7 $2 {is the wrong capture.} 33. Rg4 $18) 33. Rf4 Qxe7 (33... Rxe7 34. Qa8+ Kg7 35. Qxa7 $16) 34. Rxf5 $11) 32... Rxe7 {[%emt 0:00:05]} 33. Qa8+ {[%emt 0:00:27]} Kg7 {[%emt 0:00:04]} 34. Rxe7 {[%emt 0:00:05]} Qxe7 {[%emt 0:00:35]} 35. Qxa7 {[%emt 0:00:02]} Qe4+ {[%emt 0:00:04]} 36. Kh2 {[%emt 0:00:27]} Qh7+ {[%emt 0:00:15]} 37. Kg2 {[%emt 0:00:05]} Qe4+ {[%emt 0:00:03]} 38. Kh2 {[%emt 0:00:02]} Qh7+ {[%emt 0:00:03]} 39. Kg2 {[%emt 0:00:02]} Qe4+ {[%emt 0:00:04]} 1/2-1/2

[Event "TePe Sigeman Co 2024"]
[Site "Malmo"]
[Date "2024.05.02"]
[Round "6.1"]
[White "Maurizzi, Marc`Andria"]
[Black "Ju, Wenjun"]
[Result "1/2-1/2"]
[ECO "C42"]
[WhiteElo "2605"]
[BlackElo "2559"]
[Annotator "TA"]
[PlyCount "80"]
[EventDate "2024.04.27"]
[EventType "tourn"]
[EventCountry "SWE"]
[SourceTitle "playchess.com"]
[Source "ChessBase"]
[SourceQuality "1"]
[TimeControl "40/5400+30:1800+30"]

{[%evp 15,80,28,28,16,18,8,10,13,27,16,18,11,25,10,0,0,0,0,0,0,0,-17,-20,-11,-10,-14,-8,-33,-33,-56,-45,-61,0,0,0,0,0,0,0,0,0,0,0,0,0,0,0,0,0,0,0,0,0,0,0,0,0,0,0,0,0,0,0,0,0,0,0]} 1. e4 {[%emt 0:00:05]} e5 {[%emt 0:00:05]} 2. Nf3 {[%emt 0:00:04]} Nf6 {[%emt 0:00:09][%cal Bg8f6,Bf6e4,Be4d6][%mdl 32]} 3. Nxe5 {[%emt 0:01:27]} d6 {[%emt 0:00:03]} 4. Nf3 {[%emt 0:00:04]} Nxe4 {[%emt 0:00:04]} 5. d4 {[%emt 0:00:39]} d5 {[%emt 0:00:20]} 6. Bd3 {[%emt 0:00:03]} Bf5 {[%emt 0:00:56]} 7. O-O {[%emt 0:00:48]} Be7 {[%emt 0:00:03]} 8. Re1 {[%emt 0:17:12]} O-O {[%emt 0:01:16]} 9. Nbd2 {[%emt 0:01:04][%cal Bb1d2,Bd2f1,Bf1e3][%mdl 32]} Nd6 {[%emt 0:00:08]} 10. Nf1 {[%emt 0:00:23]} Bxd3 {[%emt 0:00:30]} 11. Qxd3 {[%emt 0:00:02]} c6 {[%emt 0:00:29]} 12. Bf4 {[%emt 0:05:49]} Na6 {[%emt 0:00:04]} 13. Ne3 {[%emt 0:04:49]} Nc7 {[%emt 0:08:45]} 14. Bxd6 {[%emt 0:08:07]} Bxd6 {[%emt 0:00:05]} 15. Nf5 {[%emt 0:00:43]} g6 {[%emt 0:03:11]} 16. Nxd6 {[%emt 0:02:37]} Qxd6 {[%emt 0:00:04]} 17. Ne5 {[%emt 0:01:03]} Rae8 {[%emt 0:06:43]} 18. h4 {[%emt 0:02:26]} f6 {[%emt 0:05:48]} 19. Nf3 {[%emt 0:00:55][%cal Be5f3,Bf3h2,Bh2g4,Bg4e3][%mdl 32]} Qd7 {[%emt 0:08:20]} 20. g3 {[%emt 0:09:38]} Nb5 {[%emt 0:05:16][%cal Bc7b5,Bb5d6,Bd6f5][%mdl 32]} 21. h5 {[%emt 0:03:27]} g5 {[%emt 0:00:21]} 22. Nh2 {[%emt 0:11:28]} Nd6 {[%emt 0:08:25]} 23. Kg2 {[%emt 0:00:14]} Qf5 {[%emt 0:13:10]} (23... a6 $15) 24. Qxf5 $11 {[%emt 0:03:34] The position is equal.} Nxf5 {[%emt 0:00:02]} 25. Ng4 {[%emt 0:00:50] [#] Black must now prevent Rxe8.} Kg7 {[%emt 0:01:26]} (25... Nxd4 $2 {is the wrong capture.} 26. Rxe8 (26. Nxf6+ Kf7 $18) 26... Rxe8 27. Nxf6+ Kf7 28. Nxe8 Kxe8 29. Re1+ Kf7 30. c4 $18 (30. c3 Ne6 $18)) 26. c3 {[%emt 0:00:07]} Nd6 {[%emt 0:00:16]} 27. f3 {[%emt 0:01:39]} Rxe1 {[%emt 0:02:06]} 28. Rxe1 {[%emt 0:00:01]} Re8 {[%emt 0:00:04]} 29. Rxe8 {[%emt 0:00:20]} Nxe8 {[%emt 0:00:03][%mdl 4096] Endgame. KN-KN} 30. Ne3 {[%emt 0:00:06]} Nd6 {[%emt 0:00:10]} 31. g4 {[%emt 0:00:05]} f5 {[%emt 0:05:58]} 32. Kf2 {[%emt 0:01:24]} (32. Nxf5+ Nxf5 33. gxf5 Kf6 $19) 32... Kf6 {[%emt 0:01:16]} 33. Ke2 {[%emt 0:00:09]} Ke6 {[%emt 0:01:19]} 34. Kd3 {[%emt 0:00:09]} fxg4 {[%emt 0:05:50]} 35. fxg4 {[%emt 0:00:02]} Ne4 {[%emt 0:00:04]} 36. a4 {[%emt 0:00:39]} Nf2+ {[%emt 0:00:21]} 37. Ke2 {[%emt 0:00:03]} Ne4 {[%emt 0:00:03]} 38. Kd3 {[%emt 0:00:04]} Nf2+ {[%emt 0:00:02]} 39. Ke2 {[%emt 0:00:03]} Ne4 {[%emt 0:00:02]} 40. Kd3 {[%emt 0:00:02]} Nf2+ {[%emt 0:00:03] Weighted Error Value: White=0.04 (flawless) /Black=0.03 (flawless) .  Mistake:       	---       	Black=1      OK:         	White=19    	Black=15     Best:        	White=1     	Black=2} 1/2-1/2

[Event "TePe Sigeman Co 2024"]
[Site "Malmo"]
[Date "2024.05.02"]
[Round "6.2"]
[White "Korobov, Anton"]
[Black "Grandelius, Nils"]
[Result "1-0"]
[ECO "C55"]
[WhiteElo "2651"]
[BlackElo "2664"]
[Annotator "TA"]
[PlyCount "71"]
[EventDate "2024.04.27"]
[EventType "tourn"]
[EventCountry "SWE"]
[SourceTitle "playchess.com"]
[Source "ChessBase"]
[SourceQuality "1"]
[TimeControl "40/5400+30:1800+30"]

{[%evp 15,71,15,26,14,22,-15,-18,-17,22,-16,12,0,17,0,0,-6,0,-7,-9,-17,-14,-26,16,23,26,25,43,20,25,10,25,22,20,25,56,72,64,54,91,54,64,52,50,52,87,86,184,185,196,187,494,416,553,542,455,323,737,729]} 1. e4 {[%emt 0:00:04]} e5 {[%emt 0:00:52]} 2. Nf3 {[%emt 0:00:24]} Nc6 {[%emt 0:00:10]} 3. Nc3 {[%emt 0:00:07]} Nf6 {[%emt 0:00:34]} 4. h3 {[%emt 0:00:06]} g6 {[%emt 0:05:40]} 5. Bc4 {[%emt 0:00:24]} Bg7 {[%emt 0:00:08]} 6. d3 {[%emt 0:00:08]} d6 {[%emt 0:01:39]} 7. a4 {[%emt 0:00:06]} O-O {[%emt 0:01:40]} 8. O-O {[%emt 0:00:45]} h6 {[%emt 0:04:48]} 9. a5 {[%emt 0:00:27]} a6 {[%emt 0:02:11]} 10. Nd5 {[%emt 0:03:57]} Nxd5 {[%emt 0:06:56]} 11. Bxd5 {[%emt 0:00:14] The position is equal.} Kh7 {[%emt 0:00:26]} (11... Nxa5 $5 12. Rxa5 c6 13. Bxf7+ Rxf7 $15) 12. c3 {[%emt 0:07:05]} f5 {[%emt 0:11:58]} (12... Nxa5 $5 13. Rxa5 c6 14. Bxf7 Qxa5 $19) 13. Re1 {[%emt 0:03:16]} Qf6 {[%emt 0:08:04]} 14. b4 {[%emt 0:11:12]} Ne7 {[%emt 0:03:36]} 15. Bb3 {[%emt 0:01:38]} g5 {[%emt 0:02:39] Threatens to win with ...g4.} 16. exf5 {[%emt 0:06:10]} Bxf5 {[%emt 0:01:11]} 17. d4 {[%emt 0:04:49]} e4 {[%emt 0:02:06]} 18. Nh2 {[%emt 0:00:49]} Ng6 {[%emt 0:05:54]} 19. Ra2 {[%emt 0:02:48]} Rae8 {[%emt 0:03:42]} 20. f3 {[%emt 0:05:00]} exf3 {[%emt 0:05:33][%cal Of5c2]} 21. Nxf3 {[%emt 0:00:16] Rxe8 is the strong threat.} Rxe1+ {[%emt 0:07:02]} 22. Qxe1 {[%emt 0:00:23]} Kh8 {[%emt 0:06:02]} 23. Rf2 {[%emt 0:03:34]} Qd8 {[%emt 0:00:51]} 24. Qd1 {[%emt 0:12:29][%cal Of3g5]} g4 {[%emt 0:03:36]} 25. hxg4 {[%emt 0:04:26]} Bxg4 {[%emt 0:00:02]} 26. Qf1 {[%emt 0:01:23]} Qe7 {[%emt 0:06:46]} 27. Bd2 {[%emt 0:05:26]} Qe4 {[%emt 0:03:16] Dodges Bc2} 28. Ne1 {[%emt 0:04:45] Qc4 would now be deadly.} Rxf2 {[%emt 0:02:40]} 29. Qxf2 {[%emt 0:00:20]} Qf5 {[%emt 0:01:10]} 30. Qe3 {[%emt 0:00:50] Hoping for Bc2.} d5 {[%emt 0:03:26]} (30... Nf8 $16 {keeps fighting.}) 31. Bc2 $18 {[%emt 0:05:57]} Qf7 {[%emt 0:00:06] [#]} 32. Qg3 $1 {[%emt 0:00:06]} Bf5 {[%emt 0:01:04]} (32... Bh5 {is tougher.} 33. Bd3 Kg8) 33. Bxf5 {[%emt 0:00:31]} Qxf5 {[%emt 0:00:01]} 34. Qxc7 {[%emt 0:00:08]} Qe4 {[%emt 0:01:02]} 35. Nf3 {[%emt 0:04:15]} Kh7 $2 {[%emt 0:00:06] [#]} (35... Qe7 36. Qh2 Kh7) 36. Qxb7 {[%emt 0:00:35] Weighted Error Value: White=0.16 (very precise) /Black=0.30.  Mistake:       	---       	Black=3      Inaccurate:     	White=3     	Black=7      OK:         	White=10    	Black=12     Best:        	White=3     	Black=1} 1-0

[Event "TePe Sigeman Co 2024"]
[Site "Malmo"]
[Date "2024.05.02"]
[Round "6.3"]
[White "Erigaisi Arjun"]
[Black "Svidler, Peter"]
[Result "1/2-1/2"]
[ECO "C88"]
[WhiteElo "2756"]
[BlackElo "2689"]
[Annotator "TA"]
[PlyCount "71"]
[EventDate "2024.04.27"]
[EventType "tourn"]
[EventCountry "SWE"]
[SourceTitle "playchess.com"]
[Source "ChessBase"]
[SourceQuality "1"]
[TimeControl "40/5400+30:1800+30"]

{[%evp 16,71,29,24,24,35,37,11,21,0,20,29,10,14,16,27,35,33,35,13,14,0,0,0,0,0,0,0,0,0,0,0,0,0,0,0,0,-6,7,0,0,0,0,0,0,0,0,0,0,0,0,0,0,0,0,-4,0,0]} 1. e4 {[%emt 0:00:07]} e5 {[%emt 0:00:46]} 2. Nf3 {[%emt 0:00:07]} Nc6 {[%emt 0:00:07]} 3. Bb5 {[%emt 0:00:46]} a6 {[%emt 0:00:06]} 4. Ba4 {[%emt 0:00:04]} Nf6 {[%emt 0:00:04]} 5. O-O {[%emt 0:00:07]} Be7 {[%emt 0:00:03]} 6. Re1 {[%emt 0:00:37]} b5 {[%emt 0:00:05]} 7. Bb3 {[%emt 0:00:03]} O-O {[%emt 0:00:06]} 8. h3 {[%emt 0:00:05]} Bb7 {[%emt 0:00:04]} 9. d3 {[%emt 0:00:05]} d5 {[%emt 0:00:29]} 10. exd5 {[%emt 0:00:51]} Nxd5 {[%emt 0:00:03]} 11. Nbd2 {[%emt 0:00:10]} Qd7 {[%emt 0:00:16]} 12. a4 {[%emt 0:00:56]} Rae8 {[%emt 0:02:25]} 13. axb5 {[%emt 0:03:53]} axb5 {[%emt 0:00:13]} 14. Ne4 {[%emt 0:00:04]} Kh8 {[%emt 0:00:18]} 15. Bd2 {[%emt 0:00:59]} f5 {[%emt 0:02:14]} 16. Neg5 {[%emt 0:00:07]} Bd8 {[%emt 0:00:07]} 17. c4 {[%emt 0:08:58]} bxc4 {[%emt 0:00:17] The position is equal.} 18. Bxc4 {[%emt 0:00:05]} Bxg5 {[%emt 0:00:08]} 19. Nxg5 {[%emt 0:05:26]} h6 {[%emt 0:00:21]} 20. Nf3 {[%emt 0:03:26]} Qd6 {[%emt 0:21:49]} 21. Ra3 {[%emt 0:38:09]} Nb6 {[%emt 0:21:54] A dynamic duo of knights.} 22. Bb5 {[%emt 0:01:53]} Re6 {[%emt 0:05:14]} 23. Bxc6 {[%emt 0:03:32]} Bxc6 {[%emt 0:05:58]} 24. Bc3 {[%emt 0:00:08]} Bxf3 {[%emt 0:11:24]} 25. Qxf3 {[%emt 0:00:44]} Nd5 {[%emt 0:00:03][%cal Bb6d5,Bd5b4,Bb4c2][%mdl 32]} 26. Bd2 {[%emt 0:00:24]} Nb4 {[%emt 0:07:20]} 27. Ra8 {[%emt 0:01:48]} Nc2 {[%emt 0:04:11]} 28. Rxf8+ {[%emt 0:00:08]} Qxf8 {[%emt 0:00:03]} 29. Rd1 {[%emt 0:01:34]} Nd4 {[%emt 0:01:40]} 30. Qd5 {[%emt 0:04:52]} Qd6 {[%emt 0:06:30]} 31. Qxd6 {[%emt 0:01:52]} Rxd6 {[%emt 0:00:09]} 32. Kf1 {[%emt 0:00:07]} Ne6 {[%emt 0:01:34]} 33. Ke2 {[%emt 0:00:59]} Nd4+ {[%emt 0:00:59]} 34. Kf1 {[%emt 0:00:06]} Ne6 {[%emt 0:00:27]} 35. Ke2 {[%emt 0:00:05]} Nd4+ {[%emt 0:00:47]} 36. Kf1 {[%emt 0:00:08] Weighted Error Value: White=0.02 (flawless) /Black=0.02 (flawless) .  Inaccurate:     	White=1     	---        OK:         	White=13    	Black=13     Best:        	White=1     	Black=1} 1/2-1/2